[Event "Early-Titled-Tuesday-Blitz-March-12-2024"]
[Site "Chess.com"]
[Date "2024.03.12"]
[Round "10"]
[White "Firouzja2003"]
[Black "Msb2"]
[Result "1/2-1/2"]
[WhiteElo "3138"]
[BlackElo "3013"]
[TimeControl "180+1"]
[EndTime "9:53:04 PDT"]
[Termination "Game drawn - insufficient material"]

1. e4 {[%clk 0:02:55.4]} 1... e6 {[%clk 0:03:00.3]} 2. d4 {[%clk 0:02:55.7]}
2... d5 {[%clk 0:03:01]} 3. Nc3 {[%clk 0:02:56.2]} 3... Nf6 {[%clk 0:03:01.2]}
4. e5 {[%clk 0:02:56.8]} 4... Nfd7 {[%clk 0:03:01.7]} 5. f4 {[%clk 0:02:57.6]}
5... c5 {[%clk 0:03:02.4]} 6. Nf3 {[%clk 0:02:58.5]} 6... Nc6 {[%clk 0:03:03]}
7. Be3 {[%clk 0:02:59.2]} 7... a6 {[%clk 0:03:03.8]} 8. Qd2 {[%clk 0:02:58.7]}
8... b5 {[%clk 0:03:03.8]} 9. Qf2 {[%clk 0:02:58.9]} 9... Qa5 {[%clk 0:02:58.1]}
10. dxc5 {[%clk 0:02:51]} 10... b4 {[%clk 0:02:57.4]} 11. Ne2 {[%clk 0:02:51.7]}
11... Nxc5 {[%clk 0:02:50.5]} 12. Ng3 {[%clk 0:02:50.7]} 12... Ne4 {[%clk
0:02:35.2]} 13. Nxe4 {[%clk 0:02:50]} 13... dxe4 {[%clk 0:02:36.1]} 14. Nd2
{[%clk 0:02:50.8]} 14... Bb7 {[%clk 0:02:20]} 15. Bb6 {[%clk 0:02:45.4]} 15...
Qd5 {[%clk 0:02:19.9]} 16. Bc4 {[%clk 0:02:45.5]} 16... Qd7 {[%clk 0:02:12.4]}
17. O-O-O {[%clk 0:02:46]} 17... Qc8 {[%clk 0:02:13]} 18. Nxe4 {[%clk
0:02:44.6]} 18... Be7 {[%clk 0:02:07.5]} 19. Nd6+ {[%clk 0:02:27.3]} 19... Bxd6
{[%clk 0:02:07.6]} 20. exd6 {[%clk 0:02:28.2]} 20... Qd7 {[%clk 0:02:05.8]} 21.
f5 {[%clk 0:02:28.8]} 21... O-O {[%clk 0:02:05]} 22. fxe6 {[%clk 0:02:29.2]}
22... fxe6 {[%clk 0:02:05.9]} 23. Qe3 {[%clk 0:02:29.7]} 23... Rae8 {[%clk
0:02:06.6]} 24. Rhe1 {[%clk 0:02:30.4]} 24... Bc8 {[%clk 0:02:05.8]} 25. g4
{[%clk 0:02:29.8]} 25... Kh8 {[%clk 0:02:06]} 26. h4 {[%clk 0:02:30.2]} 26... e5
{[%clk 0:02:05.7]} 27. Bd5 {[%clk 0:02:28.6]} 27... Nd4 {[%clk 0:01:59.8]} 28.
Bxd4 {[%clk 0:02:23.8]} 28... exd4 {[%clk 0:02:00.7]} 29. Qxd4 {[%clk
0:02:24.5]} 29... Qxd6 {[%clk 0:01:59.9]} 30. Rxe8 {[%clk 0:02:19.7]} 30... Rxe8
{[%clk 0:02:00.8]} 31. Bf7 {[%clk 0:02:20.2]} 31... Qxd4 {[%clk 0:01:57.1]} 32.
Rxd4 {[%clk 0:02:21.1]} 32... Rf8 {[%clk 0:01:57.1]} 33. g5 {[%clk 0:02:21.7]}
33... g6 {[%clk 0:01:47.5]} 34. Bb3 {[%clk 0:02:21.8]} 34... a5 {[%clk
0:01:46.3]} 35. Rd5 {[%clk 0:02:22.5]} 35... Be6 {[%clk 0:01:25.6]} 36. Rxa5
{[%clk 0:02:20.9]} 36... Bxb3 {[%clk 0:01:25.9]} 37. cxb3 {[%clk 0:02:17]} 37...
Rf4 {[%clk 0:01:26.6]} 38. a4 {[%clk 0:02:17]} 38... Rxh4 {[%clk 0:01:22.2]} 39.
Rb5 {[%clk 0:02:17.2]} 39... h6 {[%clk 0:01:20.6]} 40. gxh6 {[%clk 0:02:16.2]}
40... Kh7 {[%clk 0:01:21.2]} 41. a5 {[%clk 0:02:16.5]} 41... Rh1+ {[%clk
0:01:19.4]} 42. Kc2 {[%clk 0:02:16.8]} 42... Ra1 {[%clk 0:01:20.3]} 43. Kd3
{[%clk 0:02:16.6]} 43... Kxh6 {[%clk 0:01:19.1]} 44. Kc4 {[%clk 0:02:17.3]}
44... g5 {[%clk 0:01:19.3]} 45. Kxb4 {[%clk 0:02:17.2]} 45... g4 {[%clk
0:01:20]} 46. Rc5 {[%clk 0:02:13.6]} 46... g3 {[%clk 0:01:10.9]} 47. Rc2 {[%clk
0:02:13.9]} 47... Kg5 {[%clk 0:01:11.5]} 48. Kb5 {[%clk 0:02:14.2]} 48... Kf4
{[%clk 0:01:11.8]} 49. a6 {[%clk 0:02:12.1]} 49... Kf3 {[%clk 0:01:01]} 50. b4
{[%clk 0:01:35.3]} 50... g2 {[%clk 0:01:01.1]} 51. Rxg2 {[%clk 0:01:35.7]} 51...
Kxg2 {[%clk 0:01:02]} 52. Kb6 {[%clk 0:01:36]} 52... Kf3 {[%clk 0:01:02.5]} 53.
b5 {[%clk 0:01:36.9]} 53... Ke4 {[%clk 0:01:03.2]} 54. Kc5 {[%clk 0:01:37.4]}
54... Rc1+ {[%clk 0:00:45.1]} 55. Kd6 {[%clk 0:01:34.2]} 55... Rd1+ {[%clk
0:00:32.4]} 56. Kc6 {[%clk 0:01:33.9]} 56... Ra1 {[%clk 0:00:31]} 57. b4 {[%clk
0:00:41.1]} 57... Kd4 {[%clk 0:00:31.1]} 58. Kb7 {[%clk 0:00:24.6]} 58... Kc4
{[%clk 0:00:29]} 59. b6 {[%clk 0:00:25.5]} 59... Kxb4 {[%clk 0:00:20.6]} 60. a7
{[%clk 0:00:20.3]} 60... Kb5 {[%clk 0:00:20.7]} 61. a8=Q {[%clk 0:00:21.2]}
61... Rxa8 {[%clk 0:00:20.7]} 62. Kxa8 {[%clk 0:00:22.1]} 62... Kxb6 {[%clk
0:00:21.1]} 1/2-1/2

[Event "Early-Titled-Tuesday-Blitz-March-12-2024"]
[Site "Chess.com"]
[Date "2024.03.12"]
[Round "10"]
[White "NMJeevanK"]
[Black "ccccvhhhj"]
[Result "1-0"]
[WhiteElo "2584"]
[BlackElo "2456"]
[TimeControl "180+1"]
[EndTime "9:53:04 PDT"]
[Termination "NMJeevanK won on time"]

1. e4 {[%clk 0:03:00.9]} 1... e6 {[%clk 0:03:00.3]} 2. c4 {[%clk 0:02:59.3]}
2... d5 {[%clk 0:03:01.2]} 3. cxd5 {[%clk 0:03:00.1]} 3... exd5 {[%clk
0:03:01.6]} 4. exd5 {[%clk 0:03:00.7]} 4... Nf6 {[%clk 0:03:02.3]} 5. Nc3 {[%clk
0:02:59.9]} 5... Nxd5 {[%clk 0:03:00.2]} 6. d4 {[%clk 0:03:00.5]} 6... Be7
{[%clk 0:02:59.7]} 7. Nf3 {[%clk 0:03:00]} 7... O-O {[%clk 0:02:59.4]} 8. Bc4
{[%clk 0:03:00.6]} 8... c6 {[%clk 0:02:59.2]} 9. O-O {[%clk 0:03:00.2]} 9... Bg4
{[%clk 0:02:59.7]} 10. h3 {[%clk 0:02:59.9]} 10... Bh5 {[%clk 0:02:58.7]} 11.
Nxd5 {[%clk 0:02:58.9]} 11... cxd5 {[%clk 0:02:58.8]} 12. Be2 {[%clk 0:02:59.6]}
12... Nc6 {[%clk 0:02:59]} 13. Be3 {[%clk 0:02:59.8]} 13... Bf6 {[%clk
0:02:53.7]} 14. a3 {[%clk 0:02:57.8]} 14... Re8 {[%clk 0:02:51.8]} 15. b4 {[%clk
0:02:56.4]} 15... h6 {[%clk 0:02:33.4]} 16. Re1 {[%clk 0:02:43.3]} 16... Rc8
{[%clk 0:02:16.9]} 17. Qd2 {[%clk 0:02:39.7]} 17... Ne7 {[%clk 0:02:00.4]} 18.
g4 {[%clk 0:02:15.5]} 18... Bg6 {[%clk 0:01:59.6]} 19. Ne5 {[%clk 0:02:11.5]}
19... Bxe5 {[%clk 0:01:49.2]} 20. dxe5 {[%clk 0:02:12.4]} 20... Nc6 {[%clk
0:01:50]} 21. f4 {[%clk 0:02:11.9]} 21... Be4 {[%clk 0:01:44.8]} 22. Bd3 {[%clk
0:02:03.6]} 22... Qh4 {[%clk 0:01:34.3]} 23. Kh2 {[%clk 0:01:58.6]} 23... Red8
{[%clk 0:01:14.3]} 24. Rad1 {[%clk 0:01:52.1]} 24... Bf3 {[%clk 0:01:06.9]} 25.
Be2 {[%clk 0:01:47.1]} 25... Be4 {[%clk 0:01:07.1]} 26. Rg1 {[%clk 0:01:32.7]}
26... d4 {[%clk 0:01:01.7]} 27. b5 {[%clk 0:01:12.9]} 27... dxe3 {[%clk
0:00:16.5]} 28. Qxe3 {[%clk 0:01:13.8]} 28... Nxe5 {[%clk 0:00:10.8]} 29. Rxd8+
{[%clk 0:01:05.2]} 29... Rxd8 {[%clk 0:00:10.9]} 30. Qxe4 {[%clk 0:01:03]} 30...
Ng6 {[%clk 0:00:08.3]} 31. Rg2 {[%clk 0:00:50.4]} 31... Rd2 {[%clk 0:00:06.6]}
32. Bd3 {[%clk 0:00:41.1]} 32... Rxg2+ {[%clk 0:00:04]} 33. Kxg2 {[%clk
0:00:42]} 33... Qd8 {[%clk 0:00:04.2]} 34. a4 {[%clk 0:00:40.6]} 34... b6 {[%clk
0:00:04.4]} 35. Bc4 {[%clk 0:00:37.2]} 35... Nh4+ {[%clk 0:00:03.8]} 36. Kg3
{[%clk 0:00:35.6]} 36... g5 {[%clk 0:00:03.5]} 37. fxg5 {[%clk 0:00:19.7]} 37...
hxg5 {[%clk 0:00:04.4]} 38. Qe5 {[%clk 0:00:09.4]} 38... Kf8 {[%clk 0:00:02.7]}
39. Qh8+ {[%clk 0:00:08.9]} 39... Ke7 {[%clk 0:00:02.8]} 40. Qe5+ {[%clk
0:00:09.6]} 40... Kf8 {[%clk 0:00:02.9]} 41. Bd5 {[%clk 0:00:10.2]} 41... Qc8
{[%clk 0:00:02.6]} 42. Qh8+ {[%clk 0:00:09.8]} 42... Ke7 {[%clk 0:00:01.9]} 43.
Qxc8 {[%clk 0:00:10.7]} 43... Kf6 {[%clk 0:00:02]} 44. Qb7 {[%clk 0:00:11.4]}
44... Ng6 {[%clk 0:00:02.4]} 45. Qxf7+ {[%clk 0:00:11.1]} 45... Ke5 {[%clk
0:00:02.5]} 46. Qe6+ {[%clk 0:00:11.5]} 1-0

[Event "Early-Titled-Tuesday-Blitz-March-12-2024"]
[Site "Chess.com"]
[Date "2024.03.12"]
[Round "10"]
[White "IsaqueGoncalvesSanto"]
[Black "agvega14"]
[Result "0-1"]
[WhiteElo "1820"]
[BlackElo "2201"]
[TimeControl "180+1"]
[EndTime "9:53:05 PDT"]
[Termination "agvega14 won on time"]

1. d4 {[%clk 0:02:56.1]} 1... d5 {[%clk 0:02:59.7]} 2. c4 {[%clk 0:02:55.5]}
2... e6 {[%clk 0:02:58.3]} 3. Nc3 {[%clk 0:02:55.3]} 3... Nf6 {[%clk 0:02:58.2]}
4. Bg5 {[%clk 0:02:53.8]} 4... Nbd7 {[%clk 0:02:57.3]} 5. cxd5 {[%clk
0:02:50.1]} 5... exd5 {[%clk 0:02:57.3]} 6. e3 {[%clk 0:02:50.4]} 6... c6 {[%clk
0:02:55]} 7. Bd3 {[%clk 0:02:50.3]} 7... Be7 {[%clk 0:02:55.6]} 8. Nf3 {[%clk
0:02:49.8]} 8... O-O {[%clk 0:02:56.3]} 9. O-O {[%clk 0:02:49.5]} 9... Re8
{[%clk 0:02:56.7]} 10. Rb1 {[%clk 0:02:48.7]} 10... a5 {[%clk 0:02:51.2]} 11. a3
{[%clk 0:02:48.4]} 11... Ne4 {[%clk 0:02:49.7]} 12. Bxe7 {[%clk 0:02:46.2]}
12... Qxe7 {[%clk 0:02:50.6]} 13. Qc2 {[%clk 0:02:43.9]} 13... f5 {[%clk
0:02:49.5]} 14. b4 {[%clk 0:02:42.7]} 14... axb4 {[%clk 0:02:48.9]} 15. axb4
{[%clk 0:02:42.6]} 15... Ra3 {[%clk 0:02:38.9]} 16. Rb3 {[%clk 0:02:27.6]} 16...
Rxb3 {[%clk 0:02:19.6]} 17. Qxb3 {[%clk 0:02:27]} 17... b5 {[%clk 0:02:11]} 18.
Rc1 {[%clk 0:01:33.1]} 18... Qd6 {[%clk 0:01:44.8]} 19. Ne2 {[%clk 0:01:27.2]}
19... Nb6 {[%clk 0:01:39.5]} 20. Ne5 {[%clk 0:01:25.4]} 20... Nc4 {[%clk
0:01:38.4]} 21. Bxe4 {[%clk 0:01:17.4]} 21... fxe4 {[%clk 0:01:38.3]} 22. Nxc4
{[%clk 0:01:12.3]} 22... dxc4 {[%clk 0:01:21.5]} 23. Qb1 {[%clk 0:01:08.2]}
23... Bf5 {[%clk 0:01:18.6]} 24. Ng3 {[%clk 0:00:58.8]} 24... Bg6 {[%clk
0:01:18.5]} 25. Ne2 {[%clk 0:00:46.1]} 25... Ra8 {[%clk 0:01:11.8]} 26. Nf4
{[%clk 0:00:45.9]} 26... Bf5 {[%clk 0:01:09.7]} 27. h3 {[%clk 0:00:45.2]} 27...
h6 {[%clk 0:01:06.6]} 28. Qb2 {[%clk 0:00:39.4]} 28... Ra4 {[%clk 0:01:05.3]}
29. Ra1 {[%clk 0:00:37.6]} 29... Qxb4 {[%clk 0:01:00]} 30. Qxb4 {[%clk
0:00:33.8]} 30... Rxb4 {[%clk 0:01:00.9]} 31. Ra6 {[%clk 0:00:32.9]} 31... Rb1+
{[%clk 0:00:25]} 32. Kh2 {[%clk 0:00:31.5]} 32... Rb2 {[%clk 0:00:23.8]} 33. Kg3
{[%clk 0:00:29.2]} 33... c3 {[%clk 0:00:22.1]} 34. Rxc6 {[%clk 0:00:28.9]} 34...
b4 {[%clk 0:00:22.2]} 35. Nd5 {[%clk 0:00:27.8]} 35... c2 {[%clk 0:00:20.5]} 36.
Ne7+ {[%clk 0:00:26.2]} 36... Kh7 {[%clk 0:00:20.1]} 37. Nxf5 {[%clk 0:00:26.3]}
37... b3 {[%clk 0:00:20.4]} 38. Rc7 {[%clk 0:00:19.2]} 38... Rb1 {[%clk
0:00:20.8]} 39. Rxg7+ {[%clk 0:00:18.1]} 39... Kh8 {[%clk 0:00:21]} 40. Rg6
{[%clk 0:00:10.6]} 40... c1=Q {[%clk 0:00:19.5]} 41. Nxh6 {[%clk 0:00:09.9]}
41... Qc7+ {[%clk 0:00:17.7]} 42. Kh4 {[%clk 0:00:06.5]} 42... Qc8 {[%clk
0:00:16.4]} 43. Nf5 {[%clk 0:00:05.4]} 43... Qd8+ {[%clk 0:00:15.9]} 44. Kg4
{[%clk 0:00:04.3]} 44... Rc1 {[%clk 0:00:15.3]} 45. Rh6+ {[%clk 0:00:03.1]}
45... Kg8 {[%clk 0:00:15.1]} 46. Rg6+ {[%clk 0:00:02.7]} 46... Kf8 {[%clk
0:00:15.4]} 47. Rh6 {[%clk 0:00:02.5]} 47... Kf7 {[%clk 0:00:13.9]} 0-1

[Event "Early-Titled-Tuesday-Blitz-March-12-2024"]
[Site "Chess.com"]
[Date "2024.03.12"]
[Round "10"]
[White "UnTucopalaTimba"]
[Black "Gabcur"]
[Result "0-1"]
[WhiteElo "2001"]
[BlackElo "2293"]
[TimeControl "180+1"]
[EndTime "9:53:08 PDT"]
[Termination "Gabcur won on time"]

1. e4 {[%clk 0:02:59]} 1... e6 {[%clk 0:02:56.3]} 2. d4 {[%clk 0:02:58.3]} 2...
d5 {[%clk 0:02:56.9]} 3. Nd2 {[%clk 0:02:56.9]} 3... Nf6 {[%clk 0:02:56.4]} 4.
e5 {[%clk 0:02:51.4]} 4... Nfd7 {[%clk 0:02:56.9]} 5. Ngf3 {[%clk 0:02:50.8]}
5... c5 {[%clk 0:02:56.7]} 6. c3 {[%clk 0:02:50.6]} 6... Nc6 {[%clk 0:02:56.7]}
7. Bd3 {[%clk 0:02:47.5]} 7... f6 {[%clk 0:02:56.9]} 8. O-O {[%clk 0:02:39.7]}
8... fxe5 {[%clk 0:02:56]} 9. dxe5 {[%clk 0:02:39.1]} 9... Ndxe5 {[%clk
0:02:56]} 10. Nxe5 {[%clk 0:02:38.3]} 10... Nxe5 {[%clk 0:02:56]} 11. Qh5+
{[%clk 0:02:35]} 11... Nf7 {[%clk 0:02:56.1]} 12. Nf3 {[%clk 0:02:31.1]} 12...
Bd6 {[%clk 0:02:44.5]} 13. Ng5 {[%clk 0:02:14.4]} 13... g6 {[%clk 0:02:29.2]}
14. Nxf7 {[%clk 0:01:47.2]} 14... Kxf7 {[%clk 0:02:23.7]} 15. Qf3+ {[%clk
0:01:43.9]} 15... Kg7 {[%clk 0:02:16.8]} 16. Re1 {[%clk 0:01:41.5]} 16... Bd7
{[%clk 0:01:47.2]} 17. a4 {[%clk 0:01:27.9]} 17... Qe7 {[%clk 0:01:36.9]} 18.
Bd2 {[%clk 0:01:18.2]} 18... Raf8 {[%clk 0:01:35.2]} 19. Qe3 {[%clk 0:01:11.1]}
19... Qf6 {[%clk 0:01:29.9]} 20. Qh6+ {[%clk 0:01:08.3]} 20... Kf7 {[%clk
0:01:28.4]} 21. Be3 {[%clk 0:01:00]} 21... e5 {[%clk 0:01:14.3]} 22. Qg5 {[%clk
0:00:49.5]} 22... Qxg5 {[%clk 0:01:09.2]} 23. Bxg5 {[%clk 0:00:49.4]} 23... h6
{[%clk 0:01:04.4]} 24. Be3 {[%clk 0:00:46]} 24... Kg7 {[%clk 0:01:00.8]} 25. Bb5
{[%clk 0:00:43.3]} 25... Be6 {[%clk 0:00:47]} 26. a5 {[%clk 0:00:33.7]} 26...
Rf7 {[%clk 0:00:43.2]} 27. Rad1 {[%clk 0:00:29.5]} 27... Rhf8 {[%clk 0:00:40.3]}
28. f3 {[%clk 0:00:26.3]} 28... d4 {[%clk 0:00:30.2]} 29. cxd4 {[%clk
0:00:22.6]} 29... cxd4 {[%clk 0:00:28.4]} 30. Bxd4 {[%clk 0:00:18.3]} 30... Bb3
{[%clk 0:00:28.4]} 31. Rd3 {[%clk 0:00:16.6]} 31... exd4 {[%clk 0:00:20.3]} 32.
Rxb3 {[%clk 0:00:16.6]} 32... Bc5 {[%clk 0:00:20.4]} 33. Rd3 {[%clk 0:00:15.7]}
33... b6 {[%clk 0:00:20.3]} 34. axb6 {[%clk 0:00:11.7]} 34... axb6 {[%clk
0:00:21.2]} 35. Bc4 {[%clk 0:00:11.5]} 35... Ra7 {[%clk 0:00:20]} 36. b3 {[%clk
0:00:11.1]} 36... Rd8 {[%clk 0:00:19]} 37. Kf1 {[%clk 0:00:10.5]} 37... Rdd7
{[%clk 0:00:18.5]} 38. Re6 {[%clk 0:00:06.5]} 38... Re7 {[%clk 0:00:17.3]} 39.
Rxe7+ {[%clk 0:00:06]} 39... Rxe7 {[%clk 0:00:16.5]} 40. Kf2 {[%clk 0:00:06.2]}
40... Kf6 {[%clk 0:00:16.3]} 41. g3 {[%clk 0:00:05.5]} 41... g5 {[%clk
0:00:16.6]} 42. h3 {[%clk 0:00:05.1]} 42... Ra7 {[%clk 0:00:16.7]} 43. Kf1
{[%clk 0:00:03.4]} 43... Ra2 {[%clk 0:00:16]} 44. h4 {[%clk 0:00:02.6]} 44...
gxh4 {[%clk 0:00:15.1]} 45. b4 {[%clk 0:00:01.7]} 45... Ra1+ {[%clk 0:00:13.9]}
0-1

[Event "Early-Titled-Tuesday-Blitz-March-12-2024"]
[Site "Chess.com"]
[Date "2024.03.12"]
[Round "10"]
[White "lilylg"]
[Black "geminithegreat"]
[Result "1/2-1/2"]
[WhiteElo "2151"]
[BlackElo "2196"]
[TimeControl "180+1"]
[EndTime "9:53:12 PDT"]
[Termination "Game drawn by repetition"]

1. d4 {[%clk 0:03:00.9]} 1... d5 {[%clk 0:02:59.1]} 2. c4 {[%clk 0:02:52.6]}
2... e6 {[%clk 0:02:58.6]} 3. Nf3 {[%clk 0:02:52.2]} 3... Nf6 {[%clk 0:02:57.2]}
4. g3 {[%clk 0:02:52.5]} 4... dxc4 {[%clk 0:02:57.3]} 5. Bg2 {[%clk 0:02:52.1]}
5... a6 {[%clk 0:02:57.6]} 6. Qc2 {[%clk 0:02:47.7]} 6... Be7 {[%clk 0:02:24.5]}
7. O-O {[%clk 0:02:47.6]} 7... O-O {[%clk 0:02:23.8]} 8. Rd1 {[%clk 0:02:43.2]}
8... c6 {[%clk 0:02:19.1]} 9. Ne5 {[%clk 0:02:40.2]} 9... b5 {[%clk 0:02:05.5]}
10. a4 {[%clk 0:02:30.3]} 10... Bb7 {[%clk 0:01:58.9]} 11. b3 {[%clk 0:02:26.2]}
11... cxb3 {[%clk 0:01:56.6]} 12. Qxb3 {[%clk 0:02:26.1]} 12... Nd5 {[%clk
0:01:56.4]} 13. axb5 {[%clk 0:02:17.3]} 13... cxb5 {[%clk 0:01:45.2]} 14. e4
{[%clk 0:02:17]} 14... Nb6 {[%clk 0:01:42.7]} 15. Nc3 {[%clk 0:01:27.8]} 15...
N8d7 {[%clk 0:01:36]} 16. Nxd7 {[%clk 0:01:22.6]} 16... Qxd7 {[%clk 0:01:36.3]}
17. d5 {[%clk 0:01:19.7]} 17... exd5 {[%clk 0:01:36.3]} 18. exd5 {[%clk
0:01:19.6]} 18... Bf6 {[%clk 0:01:34.2]} 19. Be3 {[%clk 0:01:11.9]} 19... Nc4
{[%clk 0:00:50.5]} 20. Rac1 {[%clk 0:01:09.6]} 20... Rac8 {[%clk 0:00:44.6]} 21.
Bd4 {[%clk 0:00:44.4]} 21... Bxd4 {[%clk 0:00:38.8]} 22. Rxd4 {[%clk 0:00:45.3]}
22... Nb6 {[%clk 0:00:28.6]} 23. Rcd1 {[%clk 0:00:42.4]} 23... Rc4 {[%clk
0:00:21.5]} 24. Rxc4 {[%clk 0:00:32.7]} 24... Nxc4 {[%clk 0:00:22.4]} 25. Ne4
{[%clk 0:00:33.4]} 25... Rc8 {[%clk 0:00:18.6]} 26. Ng5 {[%clk 0:00:24.1]} 26...
Qd6 {[%clk 0:00:11.5]} 27. Qf3 {[%clk 0:00:19.3]} 27... Qf6 {[%clk 0:00:08.6]}
28. Qg4 {[%clk 0:00:19.1]} 28... h6 {[%clk 0:00:07.4]} 29. Ne4 {[%clk 0:00:19]}
29... Qg6 {[%clk 0:00:06.2]} 30. Qd7 {[%clk 0:00:18.3]} 30... Qb6 {[%clk
0:00:03.5]} 31. Bh3 {[%clk 0:00:12.7]} 31... Rd8 {[%clk 0:00:03.2]} 32. Qg4
{[%clk 0:00:04.3]} 32... Rxd5 {[%clk 0:00:02.7]} 33. Rxd5 {[%clk 0:00:03.8]}
33... Bxd5 {[%clk 0:00:03.6]} 34. Qc8+ {[%clk 0:00:03.8]} 34... Kh7 {[%clk
0:00:03.2]} 35. Bf5+ {[%clk 0:00:04]} 35... g6 {[%clk 0:00:02.9]} 36. Qd7 {[%clk
0:00:02]} 36... gxf5 {[%clk 0:00:01.5]} 37. Qxd5 {[%clk 0:00:02.2]} 37... fxe4
{[%clk 0:00:01.2]} 38. Qxf7+ {[%clk 0:00:02.4]} 38... Kh8 {[%clk 0:00:01.1]} 39.
Qf8+ {[%clk 0:00:03]} 39... Kh7 {[%clk 0:00:01.7]} 40. Qf7+ {[%clk 0:00:03.6]}
40... Kh8 {[%clk 0:00:02.4]} 41. Qf8+ {[%clk 0:00:04.2]} 41... Kh7 {[%clk
0:00:03]} 42. Qf7+ {[%clk 0:00:05]} 1/2-1/2

[Event "Early-Titled-Tuesday-Blitz-March-12-2024"]
[Site "Chess.com"]
[Date "2024.03.12"]
[Round "10"]
[White "atbenina64"]
[Black "Seochesspie"]
[Result "0-1"]
[WhiteElo "2741"]
[BlackElo "2869"]
[TimeControl "180+1"]
[EndTime "9:53:13 PDT"]
[Termination "Seochesspie won on time"]

1. Nf3 {[%clk 0:03:00.9]} 1... Nf6 {[%clk 0:02:59.8]} 2. c4 {[%clk 0:03:01.1]}
2... e6 {[%clk 0:02:59.5]} 3. Nc3 {[%clk 0:03:01.7]} 3... Bb4 {[%clk 0:02:57.2]}
4. Qc2 {[%clk 0:03:01.7]} 4... O-O {[%clk 0:02:56]} 5. e4 {[%clk 0:02:56.5]}
5... c5 {[%clk 0:02:47.1]} 6. e5 {[%clk 0:02:45.7]} 6... Ng4 {[%clk 0:02:47.1]}
7. a3 {[%clk 0:02:45.9]} 7... Bxc3 {[%clk 0:02:39.9]} 8. dxc3 {[%clk 0:02:23.2]}
8... f6 {[%clk 0:02:26.9]} 9. Bd3 {[%clk 0:02:18.3]} 9... h6 {[%clk 0:02:25.6]}
10. Bf4 {[%clk 0:01:37.1]} 10... fxe5 {[%clk 0:02:07]} 11. Nxe5 {[%clk
0:01:35.6]} 11... Rxf4 {[%clk 0:01:56.6]} 12. Bh7+ {[%clk 0:01:35.5]} 12... Kh8
{[%clk 0:01:56.9]} 13. Ng6+ {[%clk 0:01:36]} 13... Kxh7 {[%clk 0:01:57.1]} 14.
Nxf4+ {[%clk 0:01:36.9]} 14... Kg8 {[%clk 0:01:56.9]} 15. O-O-O {[%clk
0:01:18.6]} 15... Qg5 {[%clk 0:01:40.9]} 16. g3 {[%clk 0:01:18.9]} 16... Nc6
{[%clk 0:01:38.5]} 17. h4 {[%clk 0:01:13]} 17... Qf6 {[%clk 0:01:38]} 18. Qe2
{[%clk 0:01:04.6]} 18... Nge5 {[%clk 0:01:37.4]} 19. Nh5 {[%clk 0:01:02]} 19...
Qf5 {[%clk 0:01:35]} 20. Nf4 {[%clk 0:00:28.1]} 20... b6 {[%clk 0:01:29.5]} 21.
Rd6 {[%clk 0:00:21.2]} 21... Ba6 {[%clk 0:01:23.1]} 22. b3 {[%clk 0:00:21.2]}
22... Rf8 {[%clk 0:01:21.3]} 23. Rhd1 {[%clk 0:00:20.6]} 23... Bc8 {[%clk
0:01:20.3]} 24. Kb2 {[%clk 0:00:20.6]} 24... Ng6 {[%clk 0:01:13.5]} 25. Nxg6
{[%clk 0:00:18.1]} 25... Qxg6 {[%clk 0:01:13.1]} 26. R1d2 {[%clk 0:00:17]} 26...
Qf6 {[%clk 0:01:10.5]} 27. Qe3 {[%clk 0:00:15.4]} 27... Ne7 {[%clk 0:01:09.6]}
28. R6d3 {[%clk 0:00:10.9]} 28... d5 {[%clk 0:01:03.1]} 29. cxd5 {[%clk
0:00:07.8]} 29... Nxd5 {[%clk 0:01:01.4]} 30. Qe4 {[%clk 0:00:07.2]} 30... Ba6
{[%clk 0:00:55.3]} 31. Rxd5 {[%clk 0:00:02.8]} 31... exd5 {[%clk 0:00:53.9]} 32.
Qxd5+ {[%clk 0:00:03.7]} 32... Kh8 {[%clk 0:00:52.4]} 33. Qe4 {[%clk 0:00:03.8]}
33... Bc8 {[%clk 0:00:50.4]} 34. f4 {[%clk 0:00:04]} 34... Bf5 {[%clk
0:00:47.7]} 35. Qa4 {[%clk 0:00:04.6]} 35... Qf7 {[%clk 0:00:41.8]} 36. Qc6
{[%clk 0:00:03.8]} 36... Rc8 {[%clk 0:00:37.8]} 37. Qd6 {[%clk 0:00:03.5]} 37...
Qe6 {[%clk 0:00:37.4]} 38. Qxe6 {[%clk 0:00:02.4]} 38... Bxe6 {[%clk 0:00:37.8]}
39. c4 {[%clk 0:00:02.8]} 39... Kg8 {[%clk 0:00:37.5]} 40. Kc3 {[%clk
0:00:03.1]} 40... Kf7 {[%clk 0:00:37.4]} 41. Re2 {[%clk 0:00:03.2]} 41... h5
{[%clk 0:00:36.8]} 42. Re5 {[%clk 0:00:03.3]} 42... g6 {[%clk 0:00:36.9]} 43.
Re2 {[%clk 0:00:02.1]} 43... Kf6 {[%clk 0:00:37]} 44. Rd2 {[%clk 0:00:02.5]}
44... Ke7 {[%clk 0:00:36.8]} 45. Re2 {[%clk 0:00:02.2]} 45... Rd8 {[%clk
0:00:36.1]} 46. b4 {[%clk 0:00:02.8]} 46... Rd4 {[%clk 0:00:34.3]} 47. bxc5
{[%clk 0:00:02.6]} 47... Rxc4+ {[%clk 0:00:32.3]} 48. Kd3 {[%clk 0:00:03]} 48...
Rxc5 {[%clk 0:00:32.3]} 49. Kd4 {[%clk 0:00:03.3]} 49... Kf6 {[%clk 0:00:31.8]}
50. Rb2 {[%clk 0:00:02.6]} 50... Ra5 {[%clk 0:00:31.5]} 0-1